{"text_format":"1","workbook":"xlsx","n_sheets":6,"sheets":["Start","AP-Logik","Vorgaben","Ergebnis","Bewertungstabellen","AP-Berechnung"],"not_rendered":{"charts":0,"images":0,"macros":1,"external_links":0,"defined_names":0,"comments":0,"pivot_tables":0},"unopened":[],"bounds":{"document_bytes":16777216,"sheet_cells":100000,"rows_first":2000,"rows_last":500,"rows_between":2000,"halvings":0,"cell_chars":16384,"cell_head_chars":4096},"cells_cut":0,"cells_raw":0,"read":"whole","date_system":"1900"}

{"sheet":"Start","index":0,"n_rows":8,"n_cols":6,"rows_kept":8,"cut":false,"hidden":false,"merged":[[6,5,6,13],[7,5,7,13],[2,2,2,12],[10,4,10,5]]}
["FMEA","Aufgabenpriorität: Überprüfung der Definition (Blatt \"AP-Logik\"), Erstellung von Schaubildern (Blatt \"Ergebnis\") und Berechnung der AP"]
["© 2019 by Ralf Gläßner,56332 Hatzenport,www.glaessner.de"]
["Version:","2.0","Stand gem.  AIAG/VDA \"FMEA-Handbuch\", 1. Ausgabe 2019, deutsche Fassung"]
[]
["Bitte gelb hinterlegte Felder per drop-down-Menü auswählen!"]
[]
["FMEA-Art:","MSR-FMEA",null,null,null,"Prüfung ohne Fehler beendet."]
["Schaubilder:","mit Schaubildern","mit RPZ",null,null,"Schaubilder wurden im Blatt <Ergebnis> erstellt!"]

{"sheet":"AP-Logik","index":1,"n_rows":73,"n_cols":18,"rows_kept":73,"cut":false,"hidden":false,"merged":[[2,11,2,12],[2,13,2,14],[2,16,3,16],[2,0,2,1],[2,2,2,3],[2,4,2,5],[2,7,3,7],[2,9,2,10]]}
["Konstruktions- und Prozess-FMEA (auch als Default für System-FMEA)",null,null,null,null,null,null,null,null,"MSR-FMEA"]
[]
["Bedeutung B",null,"Auftreten A",null,"Entdeckung E",null,"Aufgaben-","Quelle","Einträge","Bedeutung B",null,"Häufigkeit H",null,"Monitoring M",null,"Aufgaben-","Quelle","Einträge"]
["von","bis","von","bis","von","bis","Priorität",null,{"$f":"SUM(I5:I73)","v":69},"von","bis","von","bis","von","bis","Priorität",null,{"$f":"SUM(R5:R73)","v":39}]
[9,10,8,10,7,10,"H","AIAG/VDA \"FMEA-Handbuch\", 1.Ausgabe 2019, dt. Fassung",{"$f":"IF(A5>0,1,0)","v":1},10,10,5,10,1,10,"H","AIAG/VDA \"FMEA-Handbuch\", 1.Ausgabe 2019, dt. Fassung",{"$f":"IF(J5>0,1,0)","v":1}]
[9,10,8,10,5,6,"H","AIAG/VDA \"FMEA-Handbuch\", 1.Ausgabe 2019, dt. Fassung",{"$f":"IF(A6>0,1,0)","v":1},10,10,4,4,4,10,"H","AIAG/VDA \"FMEA-Handbuch\", 1.Ausgabe 2019, dt. Fassung",{"$f":"IF(J6>0,1,0)","v":1}]
[9,10,8,10,2,4,"H","AIAG/VDA \"FMEA-Handbuch\", 1.Ausgabe 2019, dt. Fassung",1,10,10,4,4,2,3,"H","AIAG/VDA \"FMEA-Handbuch\", 1.Ausgabe 2019, dt. Fassung",1]
[9,10,8,10,1,1,"H","AIAG/VDA \"FMEA-Handbuch\", 1.Ausgabe 2019, dt. Fassung",1,10,10,4,4,1,1,"M","AIAG/VDA \"FMEA-Handbuch\", 1.Ausgabe 2019, dt. Fassung",1]
[9,10,6,7,7,10,"H","AIAG/VDA \"FMEA-Handbuch\", 1.Ausgabe 2019, dt. Fassung",{"$f":"IF(A9>0,1,0)","v":1},10,10,3,3,4,10,"H","AIAG/VDA \"FMEA-Handbuch\", 1.Ausgabe 2019, dt. Fassung",1]
[9,10,6,7,5,6,"H","AIAG/VDA \"FMEA-Handbuch\", 1.Ausgabe 2019, dt. Fassung",1,10,10,3,3,2,3,"M","AIAG/VDA \"FMEA-Handbuch\", 1.Ausgabe 2019, dt. Fassung",1]
[9,10,6,7,2,4,"H","AIAG/VDA \"FMEA-Handbuch\", 1.Ausgabe 2019, dt. Fassung",1,10,10,3,3,1,1,"N","AIAG/VDA \"FMEA-Handbuch\", 1.Ausgabe 2019, dt. Fassung",1]
[9,10,6,7,1,1,"H","AIAG/VDA \"FMEA-Handbuch\", 1.Ausgabe 2019, dt. Fassung",1,10,10,2,2,4,10,"M","AIAG/VDA \"FMEA-Handbuch\", 1.Ausgabe 2019, dt. Fassung",1]
[9,10,4,5,7,10,"H","AIAG/VDA \"FMEA-Handbuch\", 1.Ausgabe 2019, dt. Fassung",1,10,10,2,2,1,3,"N","AIAG/VDA \"FMEA-Handbuch\", 1.Ausgabe 2019, dt. Fassung",1]
[9,10,4,5,5,6,"H","AIAG/VDA \"FMEA-Handbuch\", 1.Ausgabe 2019, dt. Fassung",1,10,10,1,1,1,10,"N","AIAG/VDA \"FMEA-Handbuch\", 1.Ausgabe 2019, dt. Fassung",1]
[9,10,4,5,2,4,"H","AIAG/VDA \"FMEA-Handbuch\", 1.Ausgabe 2019, dt. Fassung",1,9,9,4,10,1,10,"H","AIAG/VDA \"FMEA-Handbuch\", 1.Ausgabe 2019, dt. Fassung",1]
[9,10,4,5,1,1,"M","AIAG/VDA \"FMEA-Handbuch\", 1.Ausgabe 2019, dt. Fassung",1,9,9,2,3,2,10,"H","AIAG/VDA \"FMEA-Handbuch\", 1.Ausgabe 2019, dt. Fassung",1]
[9,10,2,3,7,10,"H","AIAG/VDA \"FMEA-Handbuch\", 1.Ausgabe 2019, dt. Fassung",1,9,9,2,3,1,1,"N","AIAG/VDA \"FMEA-Handbuch\", 1.Ausgabe 2019, dt. Fassung",1]
[9,10,2,3,5,6,"M","AIAG/VDA \"FMEA-Handbuch\", 1.Ausgabe 2019, dt. Fassung",1,9,9,1,1,1,10,"N","AIAG/VDA \"FMEA-Handbuch\", 1.Ausgabe 2019, dt. Fassung",{"$f":"IF(J18>0,1,0)","v":1}]
[9,10,2,3,2,4,"N","AIAG/VDA \"FMEA-Handbuch\", 1.Ausgabe 2019, dt. Fassung",1,7,8,6,10,1,10,"H","AIAG/VDA \"FMEA-Handbuch\", 1.Ausgabe 2019, dt. Fassung",1]
[9,10,2,3,1,1,"N","AIAG/VDA \"FMEA-Handbuch\", 1.Ausgabe 2019, dt. Fassung",1,7,8,5,5,5,10,"H","AIAG/VDA \"FMEA-Handbuch\", 1.Ausgabe 2019, dt. Fassung",1]
[9,10,1,1,1,10,"N","AIAG/VDA \"FMEA-Handbuch\", 1.Ausgabe 2019, dt. Fassung",1,7,8,5,5,1,4,"M","AIAG/VDA \"FMEA-Handbuch\", 1.Ausgabe 2019, dt. Fassung",1]
[7,8,8,10,7,10,"H","AIAG/VDA \"FMEA-Handbuch\", 1.Ausgabe 2019, dt. Fassung",1,7,8,4,4,7,10,"H","AIAG/VDA \"FMEA-Handbuch\", 1.Ausgabe 2019, dt. Fassung",1]
[7,8,8,10,5,6,"H","AIAG/VDA \"FMEA-Handbuch\", 1.Ausgabe 2019, dt. Fassung",1,7,8,4,4,4,6,"M","AIAG/VDA \"FMEA-Handbuch\", 1.Ausgabe 2019, dt. Fassung",1]
[7,8,8,10,2,4,"H","AIAG/VDA \"FMEA-Handbuch\", 1.Ausgabe 2019, dt. Fassung",1,7,8,4,4,1,3,"N","AIAG/VDA \"FMEA-Handbuch\", 1.Ausgabe 2019, dt. Fassung",1]
[7,8,8,10,1,1,"H","AIAG/VDA \"FMEA-Handbuch\", 1.Ausgabe 2019, dt. Fassung",1,7,8,3,3,9,10,"H","AIAG/VDA \"FMEA-Handbuch\", 1.Ausgabe 2019, dt. Fassung",1]
[7,8,6,7,7,10,"H","AIAG/VDA \"FMEA-Handbuch\", 1.Ausgabe 2019, dt. Fassung",1,7,8,3,3,7,8,"M","AIAG/VDA \"FMEA-Handbuch\", 1.Ausgabe 2019, dt. Fassung",1]
[7,8,6,7,5,6,"H","AIAG/VDA \"FMEA-Handbuch\", 1.Ausgabe 2019, dt. Fassung",1,7,8,3,3,1,6,"N","AIAG/VDA \"FMEA-Handbuch\", 1.Ausgabe 2019, dt. Fassung",1]
[7,8,6,7,2,4,"H","AIAG/VDA \"FMEA-Handbuch\", 1.Ausgabe 2019, dt. Fassung",1,7,8,2,2,7,10,"M","AIAG/VDA \"FMEA-Handbuch\", 1.Ausgabe 2019, dt. Fassung",1]
[7,8,6,7,1,1,"M","AIAG/VDA \"FMEA-Handbuch\", 1.Ausgabe 2019, dt. Fassung",1,7,8,2,2,1,6,"N","AIAG/VDA \"FMEA-Handbuch\", 1.Ausgabe 2019, dt. Fassung",1]
[7,8,4,5,7,10,"H","AIAG/VDA \"FMEA-Handbuch\", 1.Ausgabe 2019, dt. Fassung",1,7,8,1,1,1,10,"N","AIAG/VDA \"FMEA-Handbuch\", 1.Ausgabe 2019, dt. Fassung",1]
[7,8,4,5,5,6,"M","AIAG/VDA \"FMEA-Handbuch\", 1.Ausgabe 2019, dt. Fassung",1,4,6,7,10,1,10,"H","AIAG/VDA \"FMEA-Handbuch\", 1.Ausgabe 2019, dt. Fassung",1]
[7,8,4,5,2,4,"M","AIAG/VDA \"FMEA-Handbuch\", 1.Ausgabe 2019, dt. Fassung",1,4,6,5,6,6,10,"H","AIAG/VDA \"FMEA-Handbuch\", 1.Ausgabe 2019, dt. Fassung",1]
[7,8,4,5,1,1,"M","AIAG/VDA \"FMEA-Handbuch\", 1.Ausgabe 2019, dt. Fassung",1,4,6,5,6,1,5,"M","AIAG/VDA \"FMEA-Handbuch\", 1.Ausgabe 2019, dt. Fassung",1]
[7,8,2,3,7,10,"M","AIAG/VDA \"FMEA-Handbuch\", 1.Ausgabe 2019, dt. Fassung",{"$f":"IF(A34>0,1,0)","v":1},4,6,2,4,9,10,"M","AIAG/VDA \"FMEA-Handbuch\", 1.Ausgabe 2019, dt. Fassung",1]
[7,8,2,3,5,6,"M","AIAG/VDA \"FMEA-Handbuch\", 1.Ausgabe 2019, dt. Fassung",1,4,6,2,4,7,8,"M","AIAG/VDA \"FMEA-Handbuch\", 1.Ausgabe 2019, dt. Fassung",1]
[7,8,2,3,2,4,"N","AIAG/VDA \"FMEA-Handbuch\", 1.Ausgabe 2019, dt. Fassung",1,4,6,2,4,1,6,"N","AIAG/VDA \"FMEA-Handbuch\", 1.Ausgabe 2019, dt. Fassung",1]
[7,8,2,3,1,1,"N","AIAG/VDA \"FMEA-Handbuch\", 1.Ausgabe 2019, dt. Fassung",1,4,6,1,1,1,10,"N","AIAG/VDA \"FMEA-Handbuch\", 1.Ausgabe 2019, dt. Fassung",1]
[7,8,1,1,1,10,"N","AIAG/VDA \"FMEA-Handbuch\", 1.Ausgabe 2019, dt. Fassung",1,2,3,7,10,1,10,"H","AIAG/VDA \"FMEA-Handbuch\", 1.Ausgabe 2019, dt. Fassung",1]
[4,6,8,10,7,10,"H","AIAG/VDA \"FMEA-Handbuch\", 1.Ausgabe 2019, dt. Fassung",1,2,3,5,6,7,10,"M","AIAG/VDA \"FMEA-Handbuch\", 1.Ausgabe 2019, dt. Fassung",1]
[4,6,8,10,5,6,"H","AIAG/VDA \"FMEA-Handbuch\", 1.Ausgabe 2019, dt. Fassung",1,2,3,5,6,1,6,"N","AIAG/VDA \"FMEA-Handbuch\", 1.Ausgabe 2019, dt. Fassung",1]
[4,6,8,10,2,4,"M","AIAG/VDA \"FMEA-Handbuch\", 1.Ausgabe 2019, dt. Fassung",1,2,3,2,4,1,10,"N","AIAG/VDA \"FMEA-Handbuch\", 1.Ausgabe 2019, dt. Fassung",1]
[4,6,8,10,1,1,"M","AIAG/VDA \"FMEA-Handbuch\", 1.Ausgabe 2019, dt. Fassung",1,2,3,1,1,1,10,"N","AIAG/VDA \"FMEA-Handbuch\", 1.Ausgabe 2019, dt. Fassung",1]
[4,6,6,7,7,10,"M","AIAG/VDA \"FMEA-Handbuch\", 1.Ausgabe 2019, dt. Fassung",1,1,1,1,10,1,10,"N","AIAG/VDA \"FMEA-Handbuch\", 1.Ausgabe 2019, dt. Fassung",1]
[4,6,6,7,5,6,"M","AIAG/VDA \"FMEA-Handbuch\", 1.Ausgabe 2019, dt. Fassung",1,null,null,null,null,null,null,null,null,0]
[4,6,6,7,2,4,"M","AIAG/VDA \"FMEA-Handbuch\", 1.Ausgabe 2019, dt. Fassung",1,null,null,null,null,null,null,null,null,0]
[4,6,6,7,1,1,"N","AIAG/VDA \"FMEA-Handbuch\", 1.Ausgabe 2019, dt. Fassung",1,null,null,null,null,null,null,null,null,{"$f":"IF(J46>0,1,0)","v":0}]
[4,6,4,5,7,10,"M","AIAG/VDA \"FMEA-Handbuch\", 1.Ausgabe 2019, dt. Fassung",{"$f":"IF(A47>0,1,0)","v":1},null,null,null,null,null,null,null,null,{"$f":"IF(J47>0,1,0)","v":0}]
[4,6,4,5,5,6,"N","AIAG/VDA \"FMEA-Handbuch\", 1.Ausgabe 2019, dt. Fassung",1,null,null,null,null,null,null,null,null,0]
[4,6,4,5,2,4,"N","AIAG/VDA \"FMEA-Handbuch\", 1.Ausgabe 2019, dt. Fassung",1,null,null,null,null,null,null,null,null,0]
[4,6,4,5,1,1,"N","AIAG/VDA \"FMEA-Handbuch\", 1.Ausgabe 2019, dt. Fassung",1,null,null,null,null,null,null,null,null,0]
[4,6,2,3,7,10,"N","AIAG/VDA \"FMEA-Handbuch\", 1.Ausgabe 2019, dt. Fassung",1,null,null,null,null,null,null,null,null,0]
[4,6,2,3,5,6,"N","AIAG/VDA \"FMEA-Handbuch\", 1.Ausgabe 2019, dt. Fassung",1,null,null,null,null,null,null,null,null,0]
[4,6,2,3,2,4,"N","AIAG/VDA \"FMEA-Handbuch\", 1.Ausgabe 2019, dt. Fassung",1,null,null,null,null,null,null,null,null,0]
[4,6,2,3,1,1,"N","AIAG/VDA \"FMEA-Handbuch\", 1.Ausgabe 2019, dt. Fassung",{"$f":"IF(A54>0,1,0)","v":1},null,null,null,null,null,null,null,null,{"$f":"IF(J54>0,1,0)","v":0}]
[4,6,1,1,1,10,"N","AIAG/VDA \"FMEA-Handbuch\", 1.Ausgabe 2019, dt. Fassung",1,null,null,null,null,null,null,null,null,0]
[2,3,8,10,7,10,"M","AIAG/VDA \"FMEA-Handbuch\", 1.Ausgabe 2019, dt. Fassung",1,null,null,null,null,null,null,null,null,0]
[2,3,8,10,5,6,"M","AIAG/VDA \"FMEA-Handbuch\", 1.Ausgabe 2019, dt. Fassung",{"$f":"IF(A57>0,1,0)","v":1},null,null,null,null,null,null,null,null,{"$f":"IF(J57>0,1,0)","v":0}]
[2,3,8,10,2,4,"N","AIAG/VDA \"FMEA-Handbuch\", 1.Ausgabe 2019, dt. Fassung",1,null,null,null,null,null,null,null,null,0]
[2,3,8,10,1,1,"N","AIAG/VDA \"FMEA-Handbuch\", 1.Ausgabe 2019, dt. Fassung",1,null,null,null,null,null,null,null,null,0]
[2,3,6,7,7,10,"N","AIAG/VDA \"FMEA-Handbuch\", 1.Ausgabe 2019, dt. Fassung",1,null,null,null,null,null,null,null,null,0]
[2,3,6,7,5,6,"N","AIAG/VDA \"FMEA-Handbuch\", 1.Ausgabe 2019, dt. Fassung",1,null,null,null,null,null,null,null,null,0]
[2,3,6,7,2,4,"N","AIAG/VDA \"FMEA-Handbuch\", 1.Ausgabe 2019, dt. Fassung",1,null,null,null,null,null,null,null,null,0]
[2,3,6,7,1,1,"N","AIAG/VDA \"FMEA-Handbuch\", 1.Ausgabe 2019, dt. Fassung",1,null,null,null,null,null,null,null,null,0]
[2,3,4,5,7,10,"N","AIAG/VDA \"FMEA-Handbuch\", 1.Ausgabe 2019, dt. Fassung",1,null,null,null,null,null,null,null,null,0]
[2,3,4,5,5,6,"N","AIAG/VDA \"FMEA-Handbuch\", 1.Ausgabe 2019, dt. Fassung",1,null,null,null,null,null,null,null,null,0]
[2,3,4,5,2,4,"N","AIAG/VDA \"FMEA-Handbuch\", 1.Ausgabe 2019, dt. Fassung",1,null,null,null,null,null,null,null,null,0]
[2,3,4,5,1,1,"N","AIAG/VDA \"FMEA-Handbuch\", 1.Ausgabe 2019, dt. Fassung",1,null,null,null,null,null,null,null,null,0]
[2,3,2,3,7,10,"N","AIAG/VDA \"FMEA-Handbuch\", 1.Ausgabe 2019, dt. Fassung",1,null,null,null,null,null,null,null,null,0]
[2,3,2,3,5,6,"N","AIAG/VDA \"FMEA-Handbuch\", 1.Ausgabe 2019, dt. Fassung",1,null,null,null,null,null,null,null,null,0]
[2,3,2,3,2,4,"N","AIAG/VDA \"FMEA-Handbuch\", 1.Ausgabe 2019, dt. Fassung",1,null,null,null,null,null,null,null,null,0]
[2,3,2,3,1,1,"N","AIAG/VDA \"FMEA-Handbuch\", 1.Ausgabe 2019, dt. Fassung",1,null,null,null,null,null,null,null,null,0]
[2,3,1,1,1,10,"N","AIAG/VDA \"FMEA-Handbuch\", 1.Ausgabe 2019, dt. Fassung",1,null,null,null,null,null,null,null,null,0]
[1,1,1,10,1,10,"N","AIAG/VDA \"FMEA-Handbuch\", 1.Ausgabe 2019, dt. Fassung",1,null,null,null,null,null,null,null,null,0]

{"sheet":"Vorgaben","index":2,"n_rows":11,"n_cols":6,"rows_kept":11,"cut":false,"hidden":false,"merged":[]}
["Quelle","FMEA-Art","RPZ-Angabe","Schaubild","AP","Bewertung"]
["AIAG/VDA \"FMEA-Handbuch\", 1.Ausgabe 2019, dt. Fassung","System-FMEA","mit RPZ","mit Schaubildern","H",10]
["firmenspezifisch","Konstruktions-FMEA","ohne RPZ","nein, nur Prüfung","M",9]
[null,"Prozess-FMEA",null,null,"N",8]
[null,"MSR-FMEA",null,null,"offen",7]
[null,null,null,null,"FEHLER",6]
[null,null,null,null,"H",5]
[null,null,null,null,"M",4]
[null,null,null,null,"N",3]
[null,null,null,null,null,2]
[null,null,null,null,null,1]

{"sheet":"Ergebnis","index":3,"n_rows":113,"n_cols":12,"rows_kept":113,"cut":false,"hidden":false,"merged":[]}
["Konstruktions-FMEA"]
[]
[]
["B= 10",null,"A= 10","A= 9","A= 8","A= 7","A= 6","A= 5","A= 4","A= 3","A= 2","A= 1"]
[null,"E= 10","H","H","H","H","H","H","H","H","H","N"]
[null,"E= 9","H","H","H","H","H","H","H","H","H","N"]
[null,"E= 8","H","H","H","H","H","H","H","H","H","N"]
[null,"E= 7","H","H","H","H","H","H","H","H","H","N"]
[null,"E= 6","H","H","H","H","H","H","H","M","M","N"]
[null,"E= 5","H","H","H","H","H","H","H","M","M","N"]
[null,"E= 4","H","H","H","H","H","H","H","N","N","N"]
[null,"E= 3","H","H","H","H","H","H","H","N","N","N"]
[null,"E= 2","H","H","H","H","H","H","H","N","N","N"]
[null,"E= 1","H","H","H","H","H","M","M","N","N","N"]
["B= 9",null,"A= 10","A= 9","A= 8","A= 7","A= 6","A= 5","A= 4","A= 3","A= 2","A= 1"]
[null,"E= 10","H","H","H","H","H","H","H","H","H","N"]
[null,"E= 9","H","H","H","H","H","H","H","H","H","N"]
[null,"E= 8","H","H","H","H","H","H","H","H","H","N"]
[null,"E= 7","H","H","H","H","H","H","H","H","H","N"]
[null,"E= 6","H","H","H","H","H","H","H","M","M","N"]
[null,"E= 5","H","H","H","H","H","H","H","M","M","N"]
[null,"E= 4","H","H","H","H","H","H","H","N","N","N"]
[null,"E= 3","H","H","H","H","H","H","H","N","N","N"]
[null,"E= 2","H","H","H","H","H","H","H","N","N","N"]
[null,"E= 1","H","H","H","H","H","M","M","N","N","N"]
["B= 8",null,"A= 10","A= 9","A= 8","A= 7","A= 6","A= 5","A= 4","A= 3","A= 2","A= 1"]
[null,"E= 10","H","H","H","H","H","H","H","M","M","N"]
[null,"E= 9","H","H","H","H","H","H","H","M","M","N"]
[null,"E= 8","H","H","H","H","H","H","H","M","M","N"]
[null,"E= 7","H","H","H","H","H","H","H","M","M","N"]
[null,"E= 6","H","H","H","H","H","M","M","M","M","N"]
[null,"E= 5","H","H","H","H","H","M","M","M","M","N"]
[null,"E= 4","H","H","H","H","H","M","M","N","N","N"]
[null,"E= 3","H","H","H","H","H","M","M","N","N","N"]
[null,"E= 2","H","H","H","H","H","M","M","N","N","N"]
[null,"E= 1","H","H","H","M","M","M","M","N","N","N"]
["B= 7",null,"A= 10","A= 9","A= 8","A= 7","A= 6","A= 5","A= 4","A= 3","A= 2","A= 1"]
[null,"E= 10","H","H","H","H","H","H","H","M","M","N"]
[null,"E= 9","H","H","H","H","H","H","H","M","M","N"]
[null,"E= 8","H","H","H","H","H","H","H","M","M","N"]
[null,"E= 7","H","H","H","H","H","H","H","M","M","N"]
[null,"E= 6","H","H","H","H","H","M","M","M","M","N"]
[null,"E= 5","H","H","H","H","H","M","M","M","M","N"]
[null,"E= 4","H","H","H","H","H","M","M","N","N","N"]
[null,"E= 3","H","H","H","H","H","M","M","N","N","N"]
[null,"E= 2","H","H","H","H","H","M","M","N","N","N"]
[null,"E= 1","H","H","H","M","M","M","M","N","N","N"]
["B= 6",null,"A= 10","A= 9","A= 8","A= 7","A= 6","A= 5","A= 4","A= 3","A= 2","A= 1"]
[null,"E= 10","H","H","H","M","M","M","M","N","N","N"]
[null,"E= 9","H","H","H","M","M","M","M","N","N","N"]
[null,"E= 8","H","H","H","M","M","M","M","N","N","N"]
[null,"E= 7","H","H","H","M","M","M","M","N","N","N"]
[null,"E= 6","H","H","H","M","M","N","N","N","N","N"]
[null,"E= 5","H","H","H","M","M","N","N","N","N","N"]
[null,"E= 4","M","M","M","M","M","N","N","N","N","N"]
[null,"E= 3","M","M","M","M","M","N","N","N","N","N"]
[null,"E= 2","M","M","M","M","M","N","N","N","N","N"]
[null,"E= 1","M","M","M","N","N","N","N","N","N","N"]
["B= 5",null,"A= 10","A= 9","A= 8","A= 7","A= 6","A= 5","A= 4","A= 3","A= 2","A= 1"]
[null,"E= 10","H","H","H","M","M","M","M","N","N","N"]
[null,"E= 9","H","H","H","M","M","M","M","N","N","N"]
[null,"E= 8","H","H","H","M","M","M","M","N","N","N"]
[null,"E= 7","H","H","H","M","M","M","M","N","N","N"]
[null,"E= 6","H","H","H","M","M","N","N","N","N","N"]
[null,"E= 5","H","H","H","M","M","N","N","N","N","N"]
[null,"E= 4","M","M","M","M","M","N","N","N","N","N"]
[null,"E= 3","M","M","M","M","M","N","N","N","N","N"]
[null,"E= 2","M","M","M","M","M","N","N","N","N","N"]
[null,"E= 1","M","M","M","N","N","N","N","N","N","N"]
["B= 4",null,"A= 10","A= 9","A= 8","A= 7","A= 6","A= 5","A= 4","A= 3","A= 2","A= 1"]
[null,"E= 10","H","H","H","M","M","M","M","N","N","N"]
[null,"E= 9","H","H","H","M","M","M","M","N","N","N"]
[null,"E= 8","H","H","H","M","M","M","M","N","N","N"]
[null,"E= 7","H","H","H","M","M","M","M","N","N","N"]
[null,"E= 6","H","H","H","M","M","N","N","N","N","N"]
[null,"E= 5","H","H","H","M","M","N","N","N","N","N"]
[null,"E= 4","M","M","M","M","M","N","N","N","N","N"]
[null,"E= 3","M","M","M","M","M","N","N","N","N","N"]
[null,"E= 2","M","M","M","M","M","N","N","N","N","N"]
[null,"E= 1","M","M","M","N","N","N","N","N","N","N"]
["B= 3",null,"A= 10","A= 9","A= 8","A= 7","A= 6","A= 5","A= 4","A= 3","A= 2","A= 1"]
[null,"E= 10","M","M","M","N","N","N","N","N","N","N"]
[null,"E= 9","M","M","M","N","N","N","N","N","N","N"]
[null,"E= 8","M","M","M","N","N","N","N","N","N","N"]
[null,"E= 7","M","M","M","N","N","N","N","N","N","N"]
[null,"E= 6","M","M","M","N","N","N","N","N","N","N"]
[null,"E= 5","M","M","M","N","N","N","N","N","N","N"]
[null,"E= 4","N","N","N","N","N","N","N","N","N","N"]
[null,"E= 3","N","N","N","N","N","N","N","N","N","N"]
[null,"E= 2","N","N","N","N","N","N","N","N","N","N"]
[null,"E= 1","N","N","N","N","N","N","N","N","N","N"]
["B= 2",null,"A= 10","A= 9","A= 8","A= 7","A= 6","A= 5","A= 4","A= 3","A= 2","A= 1"]
[null,"E= 10","M","M","M","N","N","N","N","N","N","N"]
[null,"E= 9","M","M","M","N","N","N","N","N","N","N"]
[null,"E= 8","M","M","M","N","N","N","N","N","N","N"]
[null,"E= 7","M","M","M","N","N","N","N","N","N","N"]
[null,"E= 6","M","M","M","N","N","N","N","N","N","N"]
[null,"E= 5","M","M","M","N","N","N","N","N","N","N"]
[null,"E= 4","N","N","N","N","N","N","N","N","N","N"]
[null,"E= 3","N","N","N","N","N","N","N","N","N","N"]
[null,"E= 2","N","N","N","N","N","N","N","N","N","N"]
[null,"E= 1","N","N","N","N","N","N","N","N","N","N"]
["B= 1",null,"A= 10","A= 9","A= 8","A= 7","A= 6","A= 5","A= 4","A= 3","A= 2","A= 1"]
[null,"E= 10","N","N","N","N","N","N","N","N","N","N"]
[null,"E= 9","N","N","N","N","N","N","N","N","N","N"]
[null,"E= 8","N","N","N","N","N","N","N","N","N","N"]
[null,"E= 7","N","N","N","N","N","N","N","N","N","N"]
[null,"E= 6","N","N","N","N","N","N","N","N","N","N"]
[null,"E= 5","N","N","N","N","N","N","N","N","N","N"]
[null,"E= 4","N","N","N","N","N","N","N","N","N","N"]
[null,"E= 3","N","N","N","N","N","N","N","N","N","N"]
[null,"E= 2","N","N","N","N","N","N","N","N","N","N"]
[null,"E= 1","N","N","N","N","N","N","N","N","N","N"]

{"sheet":"Bewertungstabellen","index":4,"n_rows":51,"n_cols":20,"rows_kept":51,"cut":false,"hidden":false,"merged":[[50,17,50,18],[47,17,47,18],[48,17,48,18],[49,17,49,18],[43,17,43,18],[44,17,44,18],[45,15,46,15],[45,17,45,18],[46,17,46,18],[38,14,38,19],[39,14,39,18],[40,17,40,18],[41,17,41,18],[42,17,42,18],[34,17,34,19],[35,14,35,16],[35,17,35,19],[36,14,36,16],[36,17,36,19],[30,17,30,18],[31,17,31,18],[32,17,32,18],[34,14,34,16],[30,15,30,16],[31,15,31,16],[32,15,32,16],[20,14,20,19],[21,14,21,18],[22,15,22,16],[23,15,23,16],[24,15,25,16],[22,17,22,18],[23,17,23,18],[24,17,24,18],[25,17,25,18],[26,15,28,16],[26,17,26,18],[27,17,27,18],[28,17,28,18],[29,15,29,16],[29,17,29,18],[4,0,5,0],[4,1,5,1],[4,2,5,2],[4,3,5,3],[2,14,2,19],[6,15,7,15],[10,15,12,15],[13,15,14,15],[3,14,3,16],[4,14,5,14],[4,15,5,15],[4,16,5,16],[4,17,5,17],[8,15,9,15],[4,7,5,7],[4,9,5,9],[4,8,5,8],[2,7,2,12],[2,0,2,5],[3,0,3,2],[3,7,3,11],[4,12,5,12],[4,11,5,11],[4,10,5,10],[23,8,23,9],[24,8,25,9],[24,10,25,10],[24,11,25,11],[26,8,27,9],[26,11,27,11],[47,8,49,8],[50,9,50,11],[47,9,48,9],[45,9,46,9],[32,8,32,9],[34,7,36,12],[41,8,42,8],[43,8,44,8],[45,8,46,8],[43,9,44,9],[24,2,24,4],[24,1,25,1],[46,3,46,4],[28,8,29,9],[26,10,29,10],[28,11,29,11],[30,8,30,9],[30,11,31,11],[31,8,31,9],[30,10,31,10],[50,2,50,4],[47,2,49,2],[45,2,46,2],[29,2,29,4],[30,2,30,4],[31,2,31,4],[32,2,32,4],[43,1,44,1],[41,1,42,1],[43,2,44,2],[47,3,47,4],[48,3,48,4],[49,3,49,4],[41,3,41,4],[42,3,42,4],[43,3,43,4],[44,3,44,4],[45,3,45,4],[38,7,38,12],[38,0,38,5],[39,0,39,4],[40,3,40,4],[39,7,39,11],[40,10,40,11],[43,10,43,11],[44,10,44,11],[45,10,45,11],[46,10,46,11],[47,10,47,11],[48,10,48,11],[49,10,49,11],[45,1,46,1],[47,1,49,1],[34,0,34,5],[6,1,7,1],[8,1,9,1],[10,1,12,1],[13,1,14,1],[26,1,27,1],[28,1,29,1],[41,10,41,11],[42,10,42,11],[20,7,20,12],[20,0,20,5],[6,8,7,8],[8,8,9,8],[10,8,12,8],[13,8,14,8],[21,7,21,11],[22,8,22,9],[25,2,25,4],[26,2,26,4],[22,2,22,4],[27,2,27,4],[28,2,28,4],[21,0,21,4],[23,2,23,4]]}
["Konstruktions-FMEA",null,null,null,null,null,null,"Prozess-FMEA",null,null,null,null,null,null,"MSR-FMEA"]
[]
["Bewertung der Bedeutung (B) – Design-FMEA",null,null,null,null,null,null,"Bewertung der Bedeutung (B) – Prozess-FMEA",null,null,null,null,null,null,"Bewertung der Bedeutung (B) – FMEA MSR Ergänzung"]
["Bewertung der möglichen Fehlerfolge nach den unten stehenden Kriterien",null,null,"Vom Benutzer auszufüllen",null,null,null,"Bewertung der potentiellen Fehlerfolgen nach den unten stehenden Kriterien",null,null,null,null,"Vom Benutzer auszufüllen",null,"Bewertung der möglichen Fehlerfolge nach den unten stehenden Kriterien",null,null,"Vom Benutzer auszufüllen"]
["B","Auswirkung","Kriterien für Bedeutung","Unternehmens oder produktspezifische Beispiele",null,null,null,"B","Auswirkung","Auswirkungen auf eigenes Werk","Auswirkung auf beliefertes Werk (falls bekannt)","Auswirkung auf den Endbenutzer (falls bekannt)","Unternehmens- oder produktspezifische Beispiele",null,"B","Auswirkung","Kriterien für Bedeutung","Unternehmens oder produktspezifische Beispiele"]
[]
[10,"Sehr hoch","Auswirkung auf den sicheren Betrieb des Fahrzeugs  und/oder anderer  Fahrzeuge, die  Gesundheit des Fahrers oder der Beifahrer oder anderer Verkehrsteilnehmer",null,null,null,null,10,"Hoch","Fehler können akute Gesundheits – und/oder Sicherheitsrisiken für das Produktions – oder Montagepersonal zur Folge haben",{"$f":"J7","v":"Fehler können akute Gesundheits – und/oder Sicherheitsrisiken für das Produktions – oder Montagepersonal zur Folge haben"},{"$f":"C7","v":"Auswirkung auf den sicheren Betrieb des Fahrzeugs  und/oder anderer  Fahrzeuge, die  Gesundheit des Fahrers oder der Beifahrer oder anderer Verkehrsteilnehmer"},null,null,10,"Sehr hoch","Auswirkung auf den sicheren Betrieb des Fahrzeugs  und/oder anderer  Fahrzeuge, die  Gesundheit des Fahrers oder der Beifahrer oder anderer Verkehrsteilnehmer"]
[9,null,"Nichteinhaltung von gesetzlichen oder behördlichen Vorgaben",null,null,null,null,9,null,"Fehler kann zu betriebsinterner Nichteinhaltung der Vorgaben führen",{"$f":"J8","v":"Fehler kann zu betriebsinterner Nichteinhaltung der Vorgaben führen"},"Nichteinhaltung von gesetzlichen oder behördlichen Vorgaben",null,null,9,null,"Nichteinhaltung von gesetzlichen oder behördlichen Vorgaben"]
[8,"Hoch","Verlust einer für den normalen Fahrzeugbetrieb über die vorgesehene  Lebensdauer notwendigen Hauptfunktion",null,null,null,null,8,"Mäßig hoch","100 % des betroffenen Produktionslaufs müssen möglicherweise entsorgt werden. Fehler kann zu betriebsinterner Nichteinhaltung der Vorgaben führen oder chronische Gesundheits – und/oder Sicherheitsrisiken für das Produktions – oder Montagepersonal zur Folge haben",6,"Verlust einer für den normalen Fahrzeugbetrieb über die vorgesehene  Lebensdauer notwendigen Hauptfunktion",null,null,8,"Hoch","Verlust einer für den normalen Fahrzeugbetrieb über die vorgesehene  Lebensdauer notwendigen Hauptfunktion"]
[7,null,"Einschränkung einer für den normalen Fahrzeugbetrieb über die vorgesehene  Lebensdauer notwendigen Hauptfunktion",null,null,null,null,7,null,"Produkt könnte möglicherweise sortiert und ein Teil (unter 100 %) entsorgt werden; Abweichung vom Primärprozess; geringere Produktionsgeschwindigkeit oder zusätzliches Personal","Anlagenabschaltung von 1 Stunde bis zu gesamter Produktionsschicht; möglicher Lieferungsstopp; Reparatur oder Austausch vor Ort erforderlich (Montage beim Endbenutzer) außer bei Nichteinhaltung der Vorgaben","Einschränkung einer für den normalen Fahrzeugbetrieb über die vorgesehene  Lebensdauer notwendigen Hauptfunktion",null,null,7,null,"Einschränkung einer für den normalen Fahrzeugbetrieb über die vorgesehene  Lebensdauer notwendigen Hauptfunktion"]
[6,"mittel","Verlust einer Komfortfunktion.",null,null,null,null,6,"Mäßig niedrig","100 % des Produktionslaufes müssen möglicherweise Offline nach bearbeitet und abgenommen werden","Anlagenabschaltung bis zu 1 Stunde",{"$f":"C11","v":"Verlust einer Komfortfunktion."},null,null,6,"mittel","Verlust einer Komfortfunktion."]
[5,null,"Einschränkung einer Komfortfunktion.",null,null,null,null,5,null,"Ein Teil des Produktionslaufes könnte möglicherweise Offline nachbearbeitet und abgenommen werden","Weniger als 100 % des Produktes sind betroffen; weitere fehlerhafte Produkte sehr wahrscheinlich; Sortierung notwendig; keine Anlagenabschaltung","Einschränkung einer Komfortfunktion.",null,null,5,null,"Einschränkung einer Komfortfunktion."]
[4,null,"Deutlich wahrnehmbare Qualitätsbeeinträchtigung von Erscheinungsbild, Klang, Vibrationen, Rauheit oder Haptik",null,null,null,null,4,null,"100% des Produktionslaufs müssen vor Weiterverarbeitung an den Stationen nach bearbeitet werden","Fehlerhaftes Produkt löst umfangreichen Reaktionsplan aus; weitere fehlerhafte Produkte unwahrscheinlich; keine Sortierung erforderlich","Deutlich wahrnehmbare Qualitätsbeeinträchtigung von Erscheinungsbild, Klang, Vibrationen, Rauheit oder Haptik",null,null,4,null,"Deutlich wahrnehmbare Qualitätsbeeinträchtigung von Erscheinungsbild, Klang, Vibrationen, Rauheit oder Haptik"]
[3,"niedrig","Mäßig wahrnehmbare Qualitätsbeeinträchtigung von Erscheinungsbild, Klang, Vibrationen, Rauheit oder Haptik",null,null,null,null,3,"Niedrig","Ein Teil des Produktionslaufes könnte möglicherweise vor Weiterverarbeitung an den Stationen nach bearbeitet werden","Fehlerhaftes Produkt löst untergeordneten Reaktionsplan aus; weitere fehlerhafte Produkte unwahrscheinlich; keine Sortierung erforderlich","Mäßig wahrnehmbare Qualitätsbeeinträchtigung von Erscheinungsbild, Klang, Vibrationen, Rauheit oder Haptik",null,null,3,"niedrig","Mäßig wahrnehmbare Qualitätsbeeinträchtigung von Erscheinungsbild, Klang, Vibrationen, Rauheit oder Haptik"]
[2,null,"Geringfügig wahrnehmbare Qualitätsbeeinträchtigung von Erscheinungsbild, Klang, Vibrationen, Rauheit oder Haptik",null,null,null,null,2,null,"Geringe Schwierigkeiten für den Prozess, den Betrieb oder den Bediener","Fehlerhaftes Produkt löst keinen Reaktionsplan aus; Weitere fehlerhafte Produkte unwahrscheinlich; keine Sortierung erforderlich; Rückmeldung an Lieferanten erforderlich","Geringfügig wahrnehmbare Qualitätsbeeinträchtigung von Erscheinungsbild, Klang, Vibrationen, Rauheit oder Haptik",null,null,2,null,"Geringfügig wahrnehmbare Qualitätsbeeinträchtigung von Erscheinungsbild, Klang, Vibrationen, Rauheit oder Haptik"]
[1,"sehr Niedrig","Keine wahrnehmbare Auswirkung.",null,null,null,null,1,"Sehr niedrig","Keine wahrnehmbare Auswirkung.","Keine wahrnehmbare oder keine Auswirkung","Keine wahrnehmbare Auswirkung.",null,null,1,"sehr Niedrig","Keine wahrnehmbare Auswirkung."]
[]
[]
[]
[]
["Bewertung des Auftretens (A) – Design-FMEA",null,null,null,null,null,null,"Bewertung des Auftretens (A) – Prozess-FMEA",null,null,null,null,null,null,"Bewertung der Häufigkeit (H) – FMEA MSR Ergänzung"]
["Bewertung der potentiellen Fehlerursachen nach den unten stehenden Kriterien. Berücksichtigung der Produkterfahrung und Vermeidungsmaßnahme beim Auftreten (qualitative Bewertung). Das angenommene Auftreten der Fehlerursache wird während der beabsichtigten Fahrzeuglebensdauer bewertet.",null,null,null,null,"Vom Benutzer auszufüllen",null,"Bewertung der potentiellen Fehlerursachen gemäß den unten stehenden Kriterien. Berücksichtigung der Vermeidungsmaßnahmen bei der Bestimmung des Auftretens. Das Auftreten ist ein Prediger tiefer, qualitativer Wert zum Zeitpunkt der Bewertung und könnte nicht das tatsächliche Auftreten widerspiegeln. Die Bewertungszeile ist eine relative Bewertung innerhalb des FMEA – Umfangs (des bewerteten Prozesses). Für Vermeidungsmaßnahmen mit mehreren Auftreten die Bewertung verwenden, die am besten die Robustheit der Maßnahme reflektiert",null,null,null,null,"Vom Benutzer auszufüllen",null,"Bewertung der potentiellen Fehlerursachen gemäß den unten stehenden Kriterien. Berücksichtigung der Vermeidungsmaßnahmen bei der Bestimmung des Auftretens. Das Auftreten ist ein Prediger tiefer, qualitativer Wert zum Zeitpunkt der Bewertung und könnte nicht das tatsächliche Auftreten widerspiegeln. Die Bewertungszeile ist eine relative Bewertung innerhalb des FMEA – Umfangs (des bewerteten Prozesses). Für Vermeidungsmaßnahmen mit mehreren Auftreten die Bewertung verwenden, die am besten die Robustheit der Maßnahme reflektiert",null,null,null,null,"Vom Benutzer auszufüllen"]
["A","Erwartetes Auftreten der Fehlerursache","Kriterien des Auftretens (A)",null,null,"Unternehmens- oder produktspezifische Beispiele",null,"A","Prognose des Auftretens der Fehlerursache",null,"Art der Vermeidung","Vermeidungsmaßnahmen","Unternehmens- oder produktspezifische Beispiele",null,"H","Geschätzte Häufigkeit",null,"Kriterien der Häufigkeit (H) – FMEA-MSR",null,"Unternehmens- oder produktspezifische Beispiele"]
[10,"Extrem hoch","Erstmalige Anwendung einer neuen Technologie ohne vorherige Einsatzerfahrung und/oder unter unkontrollierten Betriebsbedingungen. Keine Erfahrung für Produktverifizierung und/oder – validierung. Normen liegen nicht vor und bewährte Verfahren sind noch nicht festgelegt. Vermeidungsmaßnahmen können Leistungen im Einsatz nicht voraussagen oder liegen nicht vor.",null,null,null,null,10,"Extrem hoch",null,"Keine","Keine Vermeidungsmaßnahmen",null,null,10,"Extrem hoch oder nicht bestimmbar",null," Häufigkeit des Auftretens ist unbekannt oder während der erwarteten Fahrzeuglebensdauer inakzeptabel hoch"]
[9,"Sehr hoch","Erstmalige Anwendung einer Konstruktion mit technischen Neuerungen oder von Materialien innerhalb eines Unternehmens. Neue Anwendung oder geänderter Betriebszyklus/geänderte Betriebsbedingungen. Keine Erfahrung für Produktverifizierung und/oder –validierung. Keine gezielten Vermeidungsmaßnahmen für die Identifizierung der Leistung unter bestimmten Anforderungen.",null,null,null,null,9,"Sehr hoch",null,"Verhalten","Vermeidungsmaßnahmen haben geringe Wirkung bei der Vermeidung der Fehlerursache",null,null,9,"Hoch",null,"Fehlerursache tritt wahrscheinlich während der erwarteten Fahrzeuglebensdauer auf"]
[8,null,"Erstmalige Verwendung einer Konstruktion mit technischen Neuerungen oder von Materialien in einer neuen Anwendung. Neue Anwendung oder geänderte Betriebszyklus/geänderte Betriebsbedingungen. Keine Erfahrung für Produktverifizierung und/oder –validierung. Einige Normen bewährte Verfahren liegen vor, die nicht direkt für die Konstruktion gelten. Vermeidungsmaßnahmen sind kein verlässlicher Indikator für die Betriebsleistung.",null,null,null,null,8,null,null,null,null,null,null,8,null,null,"Fehlerursache tritt möglicherweise häufig während der erwarteten Fahrzeuglebensdauer auf"]
[7,"Hoch","Neue Konstruktion basierend auf ähnlicher Technologie und ähnlichen Materialien. Neue Anwendung oder geänderter Betriebszyklus/geänderte Betriebsbedingungen. Keine Erfahrung für Produktverifizierung und/oder – Validierung. Normen, bewährte Verfahren und Konstruktionsregeln gelten für die zugrunde liegenden Konstruktion, aber nicht für die Neuerungen. Vermeidungsmaßnahmen geben begrenzt Auskunft über die Leistung.",null,null,null,null,7,"Hoch",null,"Verhalten oder technisch","Vermeidungsmaßnahmen haben mäßige Wirkung bei der Vermeidung der Fehlerursache",null,null,7,"Mittel",null,"Fehlerursache tritt möglicherweise häufiger während der erwarteten Fahrzeuglebensdauer auf"]
[6,null,"Ähnliche Konstruktion wie vorheriges unter Verwendung vor anderer Technologien und Materialien ähnliche Anwendung mit geänderten Betriebszyklus oder geänderten Betriebsbedingungen. Prüfung – oder Einsatzerfahrung vorhanden. Normen und Konstruktionsregeln liegen vor, sind jedoch unzureichend für die Vermeidung des Auftretens der Fehlerursache. Vermeidungsmaßnahmen sind begrenzt fähig, eine Fehlerursache zu vermeiden.",null,null,null,null,6,null,null,null,null,null,null,6,null,null,"Fehlerursache tritt möglicherweise weniger häufig während der erwarteten Fahrzeuglebensdauer auf"]
[5,"Mittel","Geringfügige Änderungen an vorheriger Konstruktion unter Verwendung bewährter Technologien und Materialien. Ähnliche Anwendung, Betriebszyklus oder Betriebsbedingungen. Prüfungs- oder Einsatzerfahrung vorhanden oder  neue Konstruktion mit einiger Prüfungserfahrung in Bezug auf den Fehler. Die Konstruktion berücksichtigt Erfahrungen mit vorherigen Entwicklungen. Bewährte Verfahren neu bewertet, diese wurden jedoch nicht nach Vermeidungsmaßnahmen können Mängel im Produkt in Bezug auf die Fehlerursache aufdecken und begrenzt Hinweis auf die Leistung geben.",null,null,null,null,5,"Mittel",null,null,"Vermeidungsmaßnahmen sind wirksam in der Vermeidung der Fehlerursache",null,null,5,null,null,"Fehlerursache tritt möglicherweise gelegentlich während der erwarteten Fahrzeuglebensdauer auf"]
[4,null,"Fast identische Konstruktion mit kurzer Einsatzerfahrung. Ähnliche Anwendung mit geringfügigen Änderungen im Betriebszyklus oder den Betriebsbedingungen. Prüfung – oder Einsatzerfahrung vorhanden Vorgängerkonstruktionsanpassungen der neuen Konstruktion an bewährte Verfahren, Normen und Vorgaben. Vermeidungsmaßnahmen können Mängel im Produkt in Bezug auf die Fehler Ursache aufdecken und wahrscheinlich die Konstruktionskonformität aufzeigen.",null,null,null,null,4,null,null,null,null,null,null,4,"Niedrig",null,"Fehlerursache tritt möglicherweise gelegentlich während der erwarteten Fahrzeuglebensdauer auf. Voraussichtlich mindestens zehn Vorkommnisse während des Gebrauchs."]
[3,"Niedrig","Geringfügige Änderungen an bekannter Konstruktion (gleiche Anwendung mit geringfügigen Änderungen am Betriebszyklus oder den Betriebsbedingungen) und Prüfung – oder Einsatzerfahrung und vergleichbaren Betriebsbedingungen oder neue Konstruktion mit erfolgreich absolviertem Testverfahren. Konstruktion soll Normen und bewährten Verfahren unter Berücksichtigung der Erfahrungen aus Vorgängerkonstruktion entsprechen. Vermeidungsmaßnahmen können Mengen im Produkt in Bezug auf die Fehler Ursache aufdecken und die Konstruktionskonformität voraussagen.",null,null,null,null,3,"Niedrig",null,"Bewährte Verfahren; Verhalten oder technisch","Vermeidungsmaßnahmen sind hoch effektiv in der Vermeidung der Fehlerursache",null,null,3,"Sehr niedrig",null,"Fehlerursache tritt voraussichtlich in Einzelfällen während der erwarteten Fahrzeuglebensdauer auf. Voraussichtlich mindestens zehn Vorkommnisse während des Gebrauchs. Kann akzeptabel sein, wenn die Fehlerfolgen nicht die Sicherheit oder die Einhaltung von Vorgaben betreffen."]
[2,"Sehr niedrig","Fast identische ausgereifte Konstruktion mit einer Einsatzerfahrung. Gleiche Anwendung mit vergleichbaren Betriebszyklus und vergleichbaren Betriebsbedingungen. Prüfung – oder Einsatzerfahrung unter vergleichbaren Betriebsbedingungen. Konstruktion soll nachweislich Normen und bewährten Verfahren unter Berücksichtigung der Erfahrungen aus Vorgängerkonstruktion entsprechen. Vermeidungsmaßnahmen kommen Mängel im Produkt Bezug auf die Fehlerursache aufdecken und Verlässlichkeit der Konstruktionskonformität aufzeigen",null,null,null,null,2,"Sehr niedrig",null,null,null,null,null,2,"Extrem niedrig",null,"Fehlerursache tritt voraussichtlich während der erwarteten Fahrzeuglebensdauer nicht auf. Eine Begründung erfolgt auf Basis von Vermeidung – und Entwicklungsmaßnahmen und Felderfahrung mit ähnlichen Bauteilen. Einzelfälle können nicht ausgeschlossen werden. Kein Beweis für das nicht auftreten. Akzeptabel für die Serienproduktion"]
[1,"Extrem niedrig","Fehler wird durch Vermeidungsmaßnahmen eliminiert und Fehlerursache ist durch die Konstruktion ausgeschlossen",null,null,null,null,1,"Extrem niedrig",null,"Technisch","Vermeidungsmaßnahmen sind extrem effektiv in der Vermeidung des Auftretens der Fehlerursache aufgrund der Konstruktion (zum Beispiel Teile Geometrie) oder Prozesses (zum Beispiel Auslegung von Vorrichtungen oder Werkzeugen). Ziel der Vermeidungsmaßnahmen: Fehler kann durch die Fehlerursache physisch nicht verursacht werden.",null,null,1,"Auftreten ausgeschlossen",null,"Fehlerursache kann während des erwarteten Fahrzeuglebensdauer nicht auftreten oder es praktisch ausgeschlossen. Nicht auftreten des Fehlers ist nachgewiesen. Begründung ist dokumentiert"]
[]
["HINWEIS: A = 10, 9, 8, 7 kann nach der Serienproduktion, basierend auf der  Prozessvalidierung reduziert werden.",null,null,null,null,null,null,"Wirksamkeit der Vermeidungsmaßnahmen: berücksichtigen Sie bei der Bestimmung der Wirksamkeitsgrades der Vermeidungsmaßnahmen, ob Sie technische Vermeidungsmaßnahmen einsetzen (Einsatz von Maschinen, Werkzeug Lebensdauer, Werkzeugmaterial usw.) oder bewährte Verfahren (Vorrichtungen, Werkzeugauslegung, Kalibrierungsprozesse, Fehler Absicherung, vorbeugende Wartung, Arbeitsanweisungen, statistische Prozesslenkungsdiagramme, Prozessüberwachung, Produktauslegung usw.) oder Verhaltensmaßnahmen (Einsatz von zertifizierten oder nicht zertifizierten Bedienung, ausgebildete Handwerker, Teamleiter usw.).",null,null,null,null,null,null,"Prozentualer Zeitanteil der relevanten Betriebsbedingungen im Vergleich zur Gesamtbetriebszeit",null,null,"Wert, um den H verringert werden kann"]
[null,null,null,null,null,null,null,null,null,null,null,null,null,null,"< 10%",null,null,1]
[null,null,null,null,null,null,null,null,null,null,null,null,null,null,"<!%",null,null,2]
[]
["Bewertung der Entdeckung (E) – Design-FMEA",null,null,null,null,null,null,"Bewertung der Entdeckung (E) – Prozess-FMEA",null,null,null,null,null,null,"Bewertung des Monitoring (M) - FMEA-MSR Ergänzung"]
["Bewertung der Entwicklungsmaßnahmen bezüglich des Reifegrades der Entdeckungsmethode und der Entdeckungsmöglichkeit",null,null,null,null,"Vom Benutzer auszufüllen",null,"Bewertung der Entwicklungsmaßnahmen bezüglich des Reifegrades der Entdeckungsmethode und der Entdeckungsmöglichkeit",null,null,null,null,"Vom Benutzer auszufüllen",null,"Kriterien für Monitoring (M) der Fehlerursachen, Fehlerart und Fehlerfolgen im Kundenbetrieb. Verwendung der Bewertungszahl, die dem am wenigsten wirksamen Kriterium (Monitoring oder Systemreaktion) entspricht.",null,null,null,null,"Vom Benutzer auszufüllen"]
["E","Entdeckungs fähigkeit","Fähigkeit der Entdeckung","Kriterien für Entdeckung",null,"Unternehmens- oder produktspezifische Beispiele",null,"E","Entdeckungs- fähigkeit","Fähigkeit der Entdeckung","Kriterien für Entdeckung",null,"Unternehmens- oder produktspezifische Beispiele",null,"M","Wirksamkeit der Monitoring – Maßnahmen und der Systemreaktion","Monitoring/Kriterien für Sinneswahrnehmung","Systemreaktion/Kriterien für menschliche Reaktion",null,"Unternehmens- oder produktspezifische Beispiele"]
[10,"Sehr niedrig","Testverfahren ist noch nicht entwickelt worden.","Keine Testmethode definiert.",null,null,null,10,"Sehr niedrig","Keine Test – oder Prüfmethode vorhanden oder bekannt","Die Fehlerart kann nicht entdeckt werden oder wird nicht entdeckt.",null,null,null,10,"Unwirksam","Der Fehler kann nicht oder nicht innerhalb der Fehlerbehandlungszeit durch das System, den Fahrer, Beifahrer oder eines Servicetechniker erkannt werden.","Keine Reaktion innerhalb der Fehlerbehandlungszeitpunkt"]
[9,null,"Testmethode nicht speziell für die Entdeckung der Fehlerart oder Fehlerursache entwickelt.","OK-NOK-Test, Test-to-Failure, Degradationstest",null,null,null,9,null,"Es ist unwahrscheinlich, dass die Fehlerart mit der Test – oder Prüfmethode erkannt wird.","Die Fehlerart ist durch gelegentliche oder zufällige Prüfungen nicht zu entdecken.",null,null,null,9,"Sehr niedrig","Der Fehler kann in relevanten Betriebssituation fast nie erkannt werden. Überwachungsmaßnahmen mit niedriger Wirksamkeit, hoher Varianz oder hoher Unsicherheit. Minimale diagnostische Abdeckung.","Die Reaktion durch die System oder den Fahrer tritt möglicherweise nicht zuverlässig innerhalb der Fehlerbehandlungszeit auf. Es ist möglicherweise nicht sichergestellt, dass die Reaktion durch das System oder den Fahrer innerhalb der Fehlertoleranzzeit erfolgt"]
[8,"Niedrig","Neue Testmethode, nicht bewährt.","OK-NOK-Test, Test-to-Failure, Degradationstest",null,null,null,8,"Niedrig","Wirksamkeit und Verlässlichkeit der Test – oder Prüfmethode wurde noch nicht nachgewiesen (zum Beispiel Werk ein wenig oder keine Erfahrung mit der Methode, Gage-R&R- Ergebnisse sind marginal für vergleichbaren Prozess oder die Anwendung usw.)","Durch Prüfung durch den Menschen (sehen, fühlen, hören) oder manuelle Vermessung (Attribut oder Variable) sollte die Fehlerart oder Fehlerursache entdeckt werden",null,null,null,8,"Niedrig","Der Fehler kann in nur wenigen relevanten Betriebssituation erkannt werden. Überwachungsmaßnahmen mit niedriger Wirksamkeit, hoher Varianz oder hoher Unsicherheit. Geschätzte diagnostische Abdeckung <60%.","Die Reaktion durch das System oder den Fahrer erfolgt möglicherweise nicht immer innerhalb der Fehlerbehandlungszeit."]
[7,null,null,"OK-NOK-Test",null,"Achtung: \"mittel\" müsste systematischerweise 5,6,7 umfassen!",null,7,null,null,"Durch maschinelle Entdeckung (automatisch oder halbautomatisch mit Warnung durch Licht – oder Tonsignal usw.) oder Einsatz von Prüfmitteln wie Koordinaten Messsystemen sollte die Fehlerart oder Fehlerursache entdeckt werden.",null,null,null,7,"Mäßig niedrig","Geringe Wahrscheinlichkeit Entdeckung des Fehlers durch das System oder den Fahrer innerhalb der Fehlerbehandlungszeit. Überwachungsmaßnahmen mit niedriger Wirksamkeit, hoher Varianz oder hoher Unsicherheit. Geschätzte diagnostische Abdeckung >60%.","Geringe Wahrscheinlichkeit der Reaktion durch das System oder den Fahrer auf den entdeckten Fehler innerhalb der Fehlerbehandlungszeit."]
[6,"Mittel","Bewährte Testmethode für die Verifizierung der Funktonalität oder Validierung der Leistung, Qualität, Zuverlässigkeit und Haltbarkeit; geplanter Einsatz später im Produktentwicklungszyklus, sodass negative Test Produktionsverzögerungen aufgrund von Konstruktions – oder Werkzeug – Revisionen führen können..","Test-to_Failure",null,null,null,6,"Mittel","Wirksamkeit und Verlässlichkeit der Test – oder Prüfmethode wurde nachgewiesen (zum Beispiel Werk hat Erfahrung mit der Methode, Gage-R&R- Ergebnisse sind akzeptabel für vergleichbaren Prozess oder die Anwendung usw.)","Durch Prüfung durch den Menschen (sehen, fühlen, hören) oder manuelle Vermessung (Attribut oder Variable) wird die Fehlerart oder Fehlerursache entdeckt (einschließlich Produktstichproben).",null,null,null,6,"Mittel","Der Fehler wird vom System oder Fahrer automatisch nur während des Einsteinvorgangs mit mittlerer Varianz innerhalb des Entdeckungszeitraums entdeckt. Geschätzte diagnostische Abdeckung > 90 %.\n","Das automatische System oder der Fahrer können in vielen Betriebssituationen auf den entdeckten Fehler reagieren."]
[5,null,null,"Degradionstest",null,null,null,5,null,null,"Durch maschinelle Entdeckung (automatisch oder halbautomatisch mit Warnung durch Licht – oder Tonsignal usw.) oder Einsatz von Prüfmitteln die Koordinaten Meßsystemen noch die Fehlerart oder Fehlerursache entdeckt (einschließlich Produktstichproben)",null,null,null,5,null,"Der Fehler wird vom System automatisch innerhalb der Fehlerbehandlungszeit mit mittlerer Varianz im Entdeckungszeitraum oder vom Fahrer in sehr vielen Betriebssituationen entdeckt. Geschätzte diagnostische Abdeckung zwischen 90 % und 97 %.","Das automatische System oder der Fahrer können in sehr vielen Betriebssituationen auf den entdeckten Fehler reagieren."]
[4,"Hoch","Bewährte Testmethode für die Verifizierung der Funktionalität oder Validierung der Leistung, Qualität, Zuverlässigkeit und Haltbarkeit; geplante Einsatz ist ausreichend für Anpassung der Produktionswerkzeuge für Freigabe für die Produktion.","OK-NOK-Test",null,null,null,4,"Hoch","Wirksamkeit und Verlässlichkeit des Systems wurde nachgewiesen (zum Beispiel Werk hat Erfahrung mit der Methode, Gage-R&R- Ergebnisse sind akzeptabel usw.).","Maschinelle automatische Entdeckungsmethode entdeckt die Fehlerart in einer nachfolgenden Arbeitsstation; verhindert die Weiterverarbeitung oder markiert das Produkt als fehlerhaft, dass dann im Prozess automatisch bis zur vorgesehenen Auswurfstelle weitergeleitet wird. Das fehlerhafte Produkt wird durch ein robustes System gelenkt, dass die Ausgabe des Produktes aus der Produktionsstätte verhindert.",null,null,null,4,"Mäßig hoch","Der Fehler wird vom System automatisch innerhalb der Fehlerbehandlungszeit mit mittlerer Varianz im Entdeckungszeitraum oder vom Fahrer in den meisten Betriebssituationen deckt. Geschätzte diagnostische Abdeckung > 97 %.","Das automatische System oder der Fahrer können in den meisten Betriebssituationen auf den entdeckten Fehler reagieren"]
[3,null,null,"Test-to_Failure",null,null,null,3,null,null,"Maschinelle automatische Entdeckungsmethode entdeckt die Fehlerart an der Arbeitsstation, verhindert die Weiterverarbeitung oder markiert das Produkt als fehlerhaft, dass dann im Prozess automatisch bis zur vorgesehenen Ausbruchstelle weitergeleitet wird. Das fehlerhafte Produkt wird durch ein robustes System gelenkt, dass die Ausgabe des Produktes aus der Produktionsstätte verhindert.",null,null,null,3,"Hoch","Der Fehler wird vom System automatisch innerhalb der Fehlerbehandlungszeit mit sehr geringer Varianz im Entdeckungszeitraum und sehr hoher Wahrscheinlichkeit entdeckt geschätzte diagnostische Abdeckung > 99 %.","Das System reagiert in den meisten Betriebssituationen automatisch innerhalb der Fehlerbehandlungszeit mit sehr geringer Varianz in der System Reaktionszeit und hoher Wahrscheinlichkeit auf den entdeckten Fehler."]
[2,null,null,"Degradationstest",null,null,null,2,null,"Wirksamkeit und Verlässlichkeit Entdeckungsmethode wurde nachgewiesen (zum Beispiel Werk hat Erfahrung mit der Methode, Fehlerabsicherung usw.).","Entdeckung des Fehlers (Fehlerursache) durch Verwendung von Prüfungen, die Fehler entdecken und die Produktion dieser Produkte in der Station verhindern. Bewährte Prüfungs- oder Inspektionsverfahren für identische Prozesse unter gleichen Betriebs-/Umgebungsbedingungen (Anlagen, Material). Verfahren/Inspektion/Messausrüstung von identischen Prozessen durch Bewertung der Wiederholbarkeit und Reproduzierbarkeit des Messmittels bestätigt. Die geforderte Fehlhandlungssicherheit wird durchgeführt.",null,null,null,2,"Sehr hoch","Der Fehler wird vom System automatisch innerhalb der Fehlerbehandlungszeit mit sehr geringer Variante mit Deckungszeitraum und sehr großer Wahrscheinlichkeit entdeckt geschätzte diagnostische Abdeckung > 99,9 Prozent.","Das System reagiert automatisch innerhalb der Fehlerbehandlungszeit mit sehr geringer Varianz in der System Reaktionszeit und sehr hoher Wahrscheinlichkeit auf den entdeckten Fehler."]
[1,"Sehr hoch","Vorherige Prüfungen bestätigen, dass die Fehlerart oder Fehlerursache nicht auftreten kann, oder Entdeckungsmethoden entdecken nachweislich immer die Fehlerart oder Fehlerursache",null,null,null,null,1,"Sehr hoch","Fehlerart kann durch die Konstruktion oder den Prozess physisch nicht verursacht werden oder Entdeckungsmethoden entdecken die Fehlerart oder Fehlerursache nachweislich immer",null,null,null,null,1,"Zuverlässig und akzeptabel für die Eliminierung der ursprünglichen Fehlerfolge","Der Fehler wird vom System immer automatisch entdeckt. Geschätzte diagnostische Abdeckung signifikant höher als 99,9%.","Das System reagiert immer automatisch innerhalb der Fehlerbehandlungszeit auf den entdeckten Fehler"]

{"sheet":"AP-Berechnung","index":5,"n_rows":15,"n_cols":10,"rows_kept":15,"cut":false,"hidden":false,"merged":[]}
["Berechnung AP","B",{"$f":"IF(Start!$B$7 = \"MSR-FMEA\",\"H\",\"A\")","v":"H"},{"$f":"IF(Start!$B$7 = \"MSR-FMEA\",\"M\",\"E\")","v":"M"},"Spalte mit AP-Wert","Zeile mit AP-Wert","Zelle mit AP-Wert",{"$f":"IF(Start!$C$8 = \"ohne RPZ\",\"AP\",\"AP & RPZ\")","v":"AP & RPZ"},"Tabellenblatt mit AP-Werten","Ergebnis"]
[null,1,1,1,{"$f":"$J$2-$C2","v":12},{"$f":"$J$3-$D2-11*($B2-1)","v":113},{"$f":"ADDRESS(F2,E2)","v":"$L$113"},{"$f":"INDIRECT(\"'\"&J$1&\"'!\"&$G2)","v":"N"},"offset Spalte",13]
[null,1,1,1,{"$f":"$J$2-$C3","v":12},{"$f":"$J$3-$D3-11*($B3-1)","v":113},{"$f":"ADDRESS(F3,E3)","v":"$L$113"},{"$f":"INDIRECT(\"'\"&J$1&\"'!\"&$G3)","v":"N"},"offset Zeile",114]
[null,7,5,1,8,47,"$H$47","M"]
[null,1,1,1,12,113,"$L$113","N"]
[null,1,1,1,12,113,"$L$113","N"]
[null,1,1,1,12,113,"$L$113","N"]
[null,7,7,4,6,44,"$F$44","H"]
[null,1,1,1,12,113,"$L$113","N"]
[null,1,1,1,12,113,"$L$113","N"]
[null,1,1,1,12,113,"$L$113","N"]
[null,1,1,1,12,113,"$L$113","N"]
[null,1,1,1,12,113,"$L$113","N"]
[null,1,1,1,12,113,"$L$113","N"]
[null,1,1,1,12,113,"$L$113","N"]